Workbook

Sheet Rozpočet F1
B1: Rozpočet projektu (príloha č. 2 Formulára Žiadosti)
C2: F1 | I2: Plátca DPH | J2: Áno
A3: Názov subjektu
A4: Typ podporovanej aktivity | C4: Investície VÚ KVET založenej na OZE
A5: Vyberte veľkostnú kategoriu podniku | C5: Veľký podnik
P6: F1 | Q6: Výška a intenzita pomoci | R6: =INDEX(Číselník!C17:E18,MATCH(C4,Číselník!$B$17:$B$18,),MATCH(C5,Číselník!C16:E16)) -> 0.45
A7: ČRP | B7: Kód Aktivity | C7: Názov položky | D7: Skupina výdavkov | E7: Merná jednotka | F7: =_xlfn.CONCAT("Jednotková cena",CHAR(10),"[",INDEX(komentar_dph,_xlfn.XMATCH($J$2,platca_DPH)),"]") -> Jednotková cena [bez DPH] | G7: Počet jednotiek | H7: =_xlfn.CONCAT("Cena celkom",CHAR(10),"[",INDEX(komentar_dph,_xlfn.XMATCH($J$2,platca_DPH)),"]") -> Cena celkom [bez DPH] | I7: kód Merateľného ukazovateľa | J7: Poznámka k Merateľnému ukazovateľu | K7: =_xlfn.CONCAT("Merateľný ukazovateľ",CHAR(10),"[%]") -> Merateľný ukazovateľ [%] | L7: =_xlfn.CONCAT("Žiadateľ:",CHAR(10),C3) -> Žiadateľ:
B8: Výdavky (náklady) projektu
A9: Aktivita F1
B10: F1 | F10: 1000 | G10: 1 | H10: =F10*G10 -> 1000 | K10: =IF(ISBLANK(I10),"",IF(H10>0,H10/SUMIF($I$10:$I$16,I10,$H$10:$H$16),"")) ->  | L10: =F10*G10 -> 1000
H11: =F11*G11 -> 0 | L11: =F11*G11 -> 0
H12: 0 | L12: 0
H13: 0 | L13: 0
H14: 0 | L14: 0
H15: 0 | L15: =F15*G15 -> 0
H16: 0 | L16: 0
A17: =C4 -> Investície VÚ KVET založenej na OZE | B17: % dotácie | L17: =IFERROR(SUM(L10:L16)*(1-L18)/L19,0) -> 0.45
B18: % vlastné zdroje | L18: =1-R6 -> 0.55
B19: Spolu COV | L19: =SUM(L10:L16) -> 1000
B20: Celkom dotácia z EF | L20: =L17*L19 -> 450
B22: Spolu výška dotácie za projekt | L22: =L20 -> 450
B23: Spolu vlastné zdroje | L23: =L24-L22 -> 550
B24: Spolu COV (dotácia + vlastné zdroje) za projekt | L24: =L19 -> 1000

Sheet Rozpočet F2
B1: Rozpočet projektu (príloha č. 2 Formulára Žiadosti)
C2: F2 | I2: Plátca DPH | J2: Áno
A3: Názov subjektu
A4: Typ podporovanej aktivity | C4: Ostatné investície na podporu energeticky účinného CZT
A5: Vyberte veľkostnú kategoriu podniku | C5: Veľký podnik
A6: Vyberte relevanciu Kontrafaktuálu | B6: Áno
A7: Zadajte výšku percenta dotácie pre kontrafaktuál | B7: 0.3 | P7: F1 | Q7: Výška a intenzita pomoci | R7: =INDEX(Číselník!C17:E18,MATCH(lokalita,Číselník!$B$17:$B$18,),MATCH(podnik,Číselník!C16:E16)) -> 
A9: ČRP | B9: Kód Aktivity | C9: Názov položky | D9: Skupina výdavkov | E9: Merná jednotka | F9: =_xlfn.CONCAT("Jednotková cena",CHAR(10),"[",INDEX(komentar_dph,_xlfn.XMATCH($J$2,platca_DPH)),"]") -> Jednotková cena [bez DPH] | G9: Počet jednotiek | H9: =_xlfn.CONCAT("Cena celkom",CHAR(10),"[",INDEX(komentar_dph,_xlfn.XMATCH($J$2,platca_DPH)),"]") -> Cena celkom [bez DPH] | I9: kód Merateľného ukazovateľa | J9: Poznámka k Merateľnému ukazovateľu | K9: =_xlfn.CONCAT("Merateľný ukazovateľ",CHAR(10),"[%]") -> Merateľný ukazovateľ [%] | L9: =_xlfn.CONCAT("Žiadateľ:",CHAR(10),C3) -> Žiadateľ: | P9: F2 | Q9: Výška a intenzita pomoci | R9: =INDEX(Číselník!C23:E24,MATCH(C4,Číselník!$B$23:$B$24,),MATCH(C5,Číselník!C22:E22)) -> 0.3
B10: Výdavky (náklady) projektu
A11: Aktivita F2
B12: F2 | D12: 021 - Stavby | E12: projekt | F12: 500000 | G12: 1 | H12: =F12*G12 -> 500000 | K12: =IF(ISBLANK(I12),"",IF(H12>0,H12/SUMIF($I$24:$I$30,I12,$H$24:$H$30),"")) ->  | L12: =F12*G12 -> 500000
H13: =F13*G13 -> 0 | K13: =IF(ISBLANK(I13),"",IF(H13>0,H13/SUMIF($I$24:$I$30,I13,$H$24:$H$30),"")) ->  | L13: =F13*G13 -> 0
H14: 0 | L14: 0
H15: 0 | L15: 0
H16: 0 | L16: 0
H17: 0 | L17: 0
H18: 0 | L18: 0
A19: =C4 -> Ostatné investície na podporu energeticky účinného CZT | B19: % dotácie | C19: pre kontrafaktuál | L19: =IF(B6=Číselník!H3,0,B7) -> 0.3
B20: % dotácie | L20: =IF(B6<>"Áno",IFERROR(SUM(L12:L18)*(1-L21)/L22,0),"0,00%") -> 0,00%
B21: % vlastné zdroje | L21: =IF(B6<>"Áno",1-R9,1-L19) -> 0.7
B22: Spolu COV | L22: =SUM(L12:L18) -> 500000
B23: Celkom dotácia z EF | L23: =IF(B6<>"Áno",IFERROR(L22*L20,"N/A"),L22*L19) -> 150000
B25: Spolu výška dotácie za projekt | L25: =L23 -> 150000
B26: Spolu vlastné zdroje | L26: =L27-L25 -> 350000
B27: Spolu COV (dotácia + vlastné zdroje) za projekt | L27: =L22 -> 500000

Sheet Rozpočet F3
B1: Rozpočet projektu (príloha č. 2 Formulára Žiadosti)
C2: F3
A3: Názov subjektu
A6: ČRP | B6: Kód Aktivity | C6: Názov položky | D6: Skupina výdavkov | E6: Merná jednotka | F6: ='Rozpočet F2'!F9 -> Jednotková cena [bez DPH] | G6: Počet jednotiek | H6: ='Rozpočet F2'!H9 -> Cena celkom [bez DPH] | I6: kód Merateľného ukazovateľa | J6: Poznámka k Merateľnému ukazovateľu | K6: =_xlfn.CONCAT("Merateľný ukazovateľ",CHAR(10),"[%]") -> Merateľný ukazovateľ [%] | L6: =_xlfn.CONCAT("Žiadateľ:",CHAR(10),C3) -> Žiadateľ:
B7: Výdavky (náklady) projektu
A8: Aktivita F3 - kombinácia
H9: =F9*G9 -> 0 | K9: =IF(ISBLANK(I9),"",IF(H9>0,H9/SUMIF($I$31:$I$37,I9,$H$31:$H$37),"")) ->  | L9: =F9*G9 -> 0
H10: =F10*G10 -> 0 | K10: =IF(ISBLANK(I10),"",IF(H10>0,H10/SUMIF($I$31:$I$37,I10,$H$31:$H$37),"")) ->  | L10: =F10*G10 -> 0
H11: 0 | K11: =IF(ISBLANK(I11),"",IF(H11>0,H11/SUMIF($I$31:$I$37,I11,$H$31:$H$37),"")) ->  | L11: 0
H12: 0 | K12: =IF(ISBLANK(I12),"",IF(H12>0,H12/SUMIF($I$31:$I$37,I12,$H$31:$H$37),"")) ->  | L12: 0
H13: 0 | L13: =F13*G13 -> 0
H14: 0 | L14: 0
H15: 0 | L15: 0
B16: % dotácie | L16: =('Rozpočet F1'!L22+'Rozpočet F2'!L25)/L23 -> 0.3002994012
B17: % vlastné zdroje | L17: =1-L16 -> 0.6997005988
B18: Spolu COV | L18: ='Rozpočet F1'!L19+'Rozpočet F2'!L22 -> 501000
B19: Celkom dotácia z EF | L19: ='Rozpočet F1'!L20+'Rozpočet F2'!L23 -> 150450
B21: Spolu výška dotácie za projekt | L21: =L19 -> 150450
B22: Spolu vlastné zdroje | L22: =L23-L21 -> 350550
B23: Spolu COV (dotácia + vlastné zdroje) za projekt | L23: =L18 -> 501000

Sheet Komentáre
A1: Č.R.P. | B1: Kód aktivity | C1: Popis komentára k rozpočtovej položke

Sheet Inštrukcie
A2: Overenie stanovených percentuálnych limitov*
A3: Stavebné práce | B3: z celkových oprávnených výdavkov projektu
A4: Samostatné hnuteľné veci a súbory hnuteľných vec | B4: z celkových oprávnených výdavkov projektu
A5: Softvér | B5: z celkových oprávnených výdavkov projektu
A6: Zásoby | B6: z celkových oprávnených výdavkov projektu
A7: Mzdové výdavky - súvisiace so stavebnými prácami (Stavebný dozor, odborný autorský dohľad) | B7: z celkových oprávnených výdavkov projektu na stavebné práce: stavebný dozor - max. 2,5 % odborný aturoský dohľad - 1,5 % - v rámci „Interných zamestnancov (TPP resp. Dohoda)“ je pracovný fond max. 160 hod./mesiac - potrebné rozpísať v komentári.
A8: Mzdové výdavky - súvisiace s riadením projektu (Projektový manažér, Finančný manažér) | B8: z celkových oprávnených výdavkov projektu max. 5 %: - v rámci „Interných zamestnancov (TPP resp. Dohoda)“ je pracovný fond max. 160 hod./mesiac - potrebné rozpísať v komentári.
A9: Ostatné služby | B9: v prípade výdavkov na Publicitu a informovanosť je stanovený celkový limit - max. 20 tis. EUR - v prípade projektovej (realizačnej) dokumentácie - max. 1 % z celkových oprávnených výdavkov projektu určených na stavebné práce. - potrebné rozpísať v komentári.
A12: * Všetky stanovené limity sú bližšie špecifikované v prílohe č. 3 výzvy - Zoznam O a N výdavkov
A14: Inštrukcie pre žiadateľa k vypĺňaniu rozpočtu projektu
A15: Typ podporovanej aktivity Žiadateľ vyberie typ podporovanej aktivity z ponuky možností: Aktivita F1: iba z dvoch prededefinovaných typov aktivít. Aktivity F2: z dvoch prededefinovaných typov aktivít, alebo zvolí možnosť kontrafaktuálny scenár ("kontrafaktuál").
A16: Veľkostná kategoria podniku Žiadateľ sa zaradí podľa toho aký je typ podniku (roletové menu), pričom v rámci typu podniku - "malý podnik" je zároveň aj "mikro podnik". Pre Aktivitu F1: Investície VÚ KVET založenej na OZE: - Mikro/ Malý podnik: 65 % - Stredný podnik: 55 % - Veľký podnik: 45 % Ostatné investície VÚ KVET: - Mikro/ Malý podnik: 50 % - Stredný podnik: 40 % - Veľký podnik: 30 % Pre Aktivitu F2: Investície využívajúce iba OZE, odpadové teplo, kombinácia oboch vrártane obnovitešnej VÚ KVET: - Mikro/ Malý podnik: 65 % - Stredný podnik: 55 % - Veľký podnik: 45 % Ostatné investície na podporu energeticky účinného CZT - Mikro/ Malý podnik: 50 % - Stredný podnik: 40 % - Veľký podnik: 30 % Kontrafaktuál: V rámci spolufinancovania VP je možné dosiahnuť prostredníctvom kontrafaktuálneho scenára max. výšku 50 % (Bližšie špecifikované v prílohe výzvy č. 3 Zoznam oprávnených a neoprávnených výdavkov, bod č. 2). Pre Aktivitu F3: Žiadateľ musí vždy podrobne vyplniť záložky: Rozpočet F1 a Rozpočet F2. Kombinácia inteznzity pomoci z aktivity F1 a aktivity F2 sa napočítava automaticky zo záložiek Rozpočet F1 a Rozpočet F2 do záložky Rozpočet F3 (Aktivita F3 - kombinácia). V rámci bunky - "Spolu vlastné zdroje", kde sa automaticky vypočítajú celkovo vlastné zdroje pre Aktivitu F3, ide iba o orientačnú priemernú percentuálnu hodnotu, pričom v rámci implementácie projektu sa budú jednotlivé položky uhrádzať spolu s reálnou precentuálnou hodnotou vlastných zdrojov (spolufinancovanie) stanovenou žiadateľom v zmysle Výzvy .
A18: ČRP 1. Číslo rozpočtovej položky - je preddefinované a v prípade viacerých položiek v rámci danej aktivity napr. F1 je potrebné postupovať chronologicky, napr. po ČRP č. 1.4 bude nasledovať 1.5... Pokiaľ žiadateľ upraví počet riadkov pridá resp. odstráni riadky, upraví tiež ČRP pri jednotlivých položkách. Riadky je potrebné vkladať tak, aby celkový súčet zahŕňal aj novovložené riadky. Zároveň novovložené bunky upraví tak, aby obsahovali preddefinované údaje (roletové menu ako aj vzorce).
A19: Kód Aktivity Žiadateľ vypĺňa iba pre záložky: Rozpočet F1 a Roztpočet F2. 2. Do stĺpca "Kód Aktivity" sa uvedeie označenie aktivity v súlade s výzvou. Žiadateľ si môže v rámci projektu zvoliť nasledovné typy aktivít s príslušným označením, a to: F.1 F.2
A20: Názov položky 3. Do stĺpca "Názov položky" použiť stručný názov výdavku, ktorý jednoznačne vystihuje jeho podstatu. Pri softvéroch, samostatne hnuteľných veciach a zásobách nepoužívať presné názvy značiek a pomenovanie výrobcu. V prípade "stavebných prác" žiadateľ uvedie celú sumu do jednej kumulovanej položky s názvom - "stavebné práce", pričom môže priložiť nacenený výkaz výmer podpísaný a opečiatkovaný od relevantného spracovateľa (ak relevantné). V rámci mzdových výdavkov žiadateľ uvádza každú "pozíciu" v samostatnom riadku, a zároveň postupuje podľa inštrukcií uvedených v tejto záložke pod názvom: "Overenie stanovených percentuálnych limitov*".
A21: Skupina výdavkov 4. V rámci stanovenia skupiny výdavkov je možné použiť len skupiny výdavkov z roletového menu podľa preddefinovaného zoznamu v súlade s prílohou výzvy č. 3 (Zoznam oprávnených a neoprávnených výdavkov) výzvy a v zmysle záložky - "Číselník".
A22: Merná jednotka 5. V stĺpci "Merná jednotka" je možné použiť merné jednotky len podľa preddefinovaného zoznamu v zmysle záložky - "Číselník". Odporúčame žiadaeľovi, aby pri položke "stavebné práce" a "zásoby" zvolil mernú jednotku - "Projekt".
A23: Jednotková cena 6 Jednotkovú cenu uvádzať vždy na dve desatinné miesta. . A) Pokiaľ žiadateľ je pomerným platcom DPH podľa §49 zákona č. 222/2004 Z.z. o dani z pridanej hodnoty, jednotková cena je vrátane DPH, v komentári k príslušnej podpoložke sa uvedie, že "Výdavok podlieha aktuálne platnému koeficientu DPH stanovenému daňovým úradom“. B) Pokiaľ žiadateľ je platcom DPH podľa §49 zákona č. 222/2004 Z.z. o dani z pridanej hodnoty, jednotková cena je bez DPH. C) Pokiaľ žiadateľ nie je platcom DPH podľa §49 zákona č. 222/2004 Z.z. o dani z pridanej hodnoty, jednotková cena je vrátane DPH.
A24: Počet jednotiek 7. V stĺpci "Počet jednotiek" sa uvedie vždy na dve desatinné miesta, nie %. Odporúčame žiadaeľovi, aby pri položke "stavebné práce", "zásoby" a "publicita a informovanosť (rozpíše podbrobnejšie v komentáre)" zvolil počet celkovo - "1"
A25: Kód Merateľného ukazovateľa 8. V stĺpci "Kód Merateľného ukazovateľa" žiadateľ označí prostredníctvom ktorých rozpočtových položiek zahrnutých v rozpočte projetku plánuje plniť merateľný ukazovateľ. Žiadateľ vyberie z preddefinovaného zoznamu konkrétny merateľný ukazovateľ. V rámci Merateľných ukazovateľov: MU001 a MU002 žiadateľ v rámci RP uvedie samostatne názov rozpočtovej položky: "Stavebné práce (rekonštrukcia)" - MU001 a "Stavebné práce (nové)".
A26: Poznámka k Merateľnému ukazovateľu 9. V prípade, že jedna rozpočtová položka sa týka viacero merateľných ukazovateľov v rámci danej aktivity, žiadateľ do stĺpca s názvom " kód Merateľného ukazovateľa" vyberie jeden ukazovateľ a ostatné vypíše ako kódy do stĺpca "Poznámka k Merateľnému ukazovateľu".
A27: Merateľný ukazovateľ v % 10. V stĺpci "Merateľný ukazovateľ v %" - žiadateľovi sa vypočíta percentuálny podiel vybraného merateľného ukazovateľa k danej rozpočtovej položke.
A28: Žiadateľ (názov subjektu) 11. V danej bunke žiadateľ vypíše presný názov subjektu, za ktorý bude predkladať žiadosť o dotáciu.
A29: Kometáre (hárok č, 2) 12. V danom hárku žiadateľ vypĺňa k jednotlivým rozpočtovým položkám stručný popis, napr. je potrebné, aby pri mzdovom výdavku - "Projektový manažér" bol stanovený popis výpočtu sumy určenej na tento výdavok, a to v prípade ak je na TPP, dohodu, ale aj na faktúru, taktiež zvlášť uvedie položku - "Projektová dokumentácia". Pri položke "Publicita a Informovanosť" je potrebné do komentára uviesť približný počet oprávnených výdavkov (napr. 2 x veľkoplošná tabuľa - 5 000,00 EUR, 250 ks lepiek a štítkov - 500,00 EUR...).

Sheet Číselník
A1: Priame výdavky | B1: Výdavky (náklady) projektu | C1: Merné jednotky | D1: Kód podporných aktivít | E1: kód MU | F1: Merné jednotky MU | H1: DPH | I1: Komentár
A2: 014 - Oceniteľné práva | B2: 013 - Softvér | C2: projekt | D2: F1 | E2: MU001 | F2: EUR | H2: Áno | I2: bez DPH | K2: Max výška kontrafaktuálu | L2: 0.5
A3: 019 - Ostatný dlhodobý nehmotný majetok | B3: 021 - Stavby | C3: ks | D3: F2 | E3: MU002 | F3: EUR | H3: Nie | I3: s DPH
A4: 021 - Stavby | B4: 022 - Samostatné hnuteľné veci a súbory hnuteľných vec | C4: meter | D4: F3 | E4: MU003 | F4: EUR
A5: 022 - Samostatné hnuteľné veci a súbor hnuteľných vecí | B5: 112 - Zásoby | C5: súbor | E5: MU004 | F5: EUR
A6: 023 - Dopravné prostriedky | B6: 112 - Zásoby | C6: osobohodina | E6: MU005 | F6: EUR
A7: 029 - Ostatný dlhodobný hmotný majetok | B7: 518 - Ostatné služby | C7: osobomesiac | E7: MU006 | F7: EUR
A8: 112 - Zásoby | B8: 521 -Mzdové výdavky | E8: MU007 | F8: EUR
A9: 502 - Spotreba energie | E9: MU008 | F9: EUR
A10: 503 - Spotreba ostatných neskladovateľných dodávok
A11: 511 - Opravy a udržiavanie
A12: 512 - Cestovné náhrady
A13: 518 - Ostatné služby
A14: 521 - Mzdové výdavky
A15: 548 - Výdavky na prevádzkovú činnosť | B15: F1
A16: 551 - Odpisy | B16: lokalita | C16: Malý Podnik | D16: Stredný podnik | E16: Veľký podnik
A17: 568 - Ostatné finančné výdavky | B17: Investície VÚ KVET založenej na OZE | C17: 0.65 | D17: 0.55 | E17: 0.45
B18: Ostatné investície VÚ KVET | C18: 0.5 | D18: 0.4 | E18: 0.3
B21: F2
B22: lokalita | C22: Malý Podnik | D22: Stredný podnik | E22: Veľký podnik
B23: Investície využívajúce iba OZE, odpadové teplo, kombinácia oboch vrátane obnoviteľnej VÚ KVET | C23: 0.65 | D23: 0.55 | E23: 0.45
B24: Ostatné investície na podporu energeticky účinného CZT | C24: 0.5 | D24: 0.4 | E24: 0.3
B27: F3 | C27: Malý Podnik | D27: Stredný podnik | E27: Veľký podnik
C28: Kombinácia intenzity pomoci z aktivity F1 a aktivity F2 - žiadateľ uvádza pri každej rozpočtovej položke výšku intenzity pomoci samostatne, a teda podľa toho, do akej aktivity oprávnený výdavok spadá.
C29: Výšku spolufinancovania je možné editovať.
C30: Spolu vlastné zdroje, kde sa automaticky vypočítajú celkovo vlastné zdroje pre Aktivitu F3, ide iba o orientačnú priemernú percentuálnu hodnotu,
C31: pričom v rámci implementácie projektu sa budú jednotlivé položky uhrádzať spolu s reálnou precentuálnou hodnotou vlastných zdrojov (spolufinancovanie) stanovenou žiadateľom v zmysle Výzvy .
